[Event "XIX Najdorf Memorial 2019"]
[Site "Warsaw"]
[Date "2019.07.10"]
[Round "5.23"]
[White "Godzwon, Iwo"]
[Black "Mirski, Michal"]
[Result "1-0"]
[ECO "B47"]
[WhiteElo "2285"]
[BlackElo "2017"]
[Annotator "NA"]
[PlyCount "111"]
[EventDate "2019.07.06"]
[EventType "swiss"]
[EventCountry "POL"]
[SourceTitle "playchess.com"]
[Source "ChessBase"]
[SourceQuality "1"]
[TimeControl "40/5400+30:1800+30"]

1. e4 {[%emt 0:00:00]} c5 {[%emt 0:18:43]} 2. Nf3 {[%emt 0:00:00]} e6 {[%emt 0:00:18]} 3. d4 {[%emt 0:00:00]} cxd4 {[%emt 0:00:05]} 4. Nxd4 {[%emt 0:00:00]} Nc6 {[%emt 0:00:37]} 5. Nc3 {[%emt 0:00:06]} Qc7 {[%emt 0:00:42]} 6. f4 {[%emt 0:12:04]} a6 {[%emt 0:14:13]} 7. Nxc6 {[%emt 0:00:09]} Qxc6 {[%emt 0:02:13]} 8. Bd3 {[%emt 0:00:04]} Bc5 {[%emt 0:01:49]} 9. Qg4 {[%emt 0:03:34]} g6 {[%emt 0:02:11]} 10. Bd2 {[%emt 0:11:18]} Nf6 {[%emt 0:06:22]} 11. Qe2 {[%emt 0:01:19]} b5 {[%emt 0:16:07]} 12. e5 {[%emt 0:07:57]} Nd5 {[%emt 0:00:47]} 13. Nxd5 {[%emt 0:00:04]} exd5 {[%emt 0:00:21]} 14. h4 {[%emt 0:01:24]} Bb7 {[%emt 0:01:03]} 15. h5 {[%emt 0:00:06]} O-O-O {[%emt 0:01:24]} 16. O-O-O {[%emt 0:00:16]} d4 {[%emt 0:02:06]} 17. Rh2 {[%emt 0:05:34]} Qe6 {[%emt 0:01:08]} 18. Kb1 {[%emt 0:01:37]} Bd5 {[%emt 0:01:22]} 19. b3 {[%emt 0:00:53]} d6 {[%emt 0:02:32]} 20. Re1 {[%emt 0:10:01]} dxe5 {[%emt 0:05:47]} 21. fxe5 {[%emt 0:04:01]} Rhe8 {[%emt 0:00:14]} 22. Qf2 {[%emt 0:01:15]} Qc6 {[%emt 0:05:38]} 23. g3 {[%emt 0:02:03]} Rd7 {[%emt 0:00:41]} 24. hxg6 {[%emt 0:08:12]} hxg6 {[%emt 0:00:14]} 25. Qf4 {[%emt 0:00:22]} Qb6 {[%emt 0:04:49]} 26. Be4 {[%emt 0:02:28]} Be6 {[%emt 0:00:24]} 27. Reh1 {[%emt 0:01:03]} a5 {[%emt 0:05:24]} 28. Rh8 {[%emt 0:01:05]} Red8 {[%emt 0:01:07]} 29. Qf3 {[%emt 0:08:09]} a4 {[%emt 0:02:00]} 30. Bg5 {[%emt 0:00:08]} Rxh8 {[%emt 0:00:55]} 31. Rxh8+ {[%emt 0:00:03]} Kc7 {[%emt 0:00:19]} 32. Bc6 {[%emt 0:00:59]} axb3 {[%emt 0:01:00]} 33. axb3 {[%emt 0:00:04]} Qxc6 {[%emt 0:03:22]} 34. Rc8+ {[%emt 0:00:03]} Kxc8 {[%emt 0:00:01]} 35. Qxc6+ {[%emt 0:00:04]} Rc7 {[%emt 0:00:09]} 36. Qe8+ {[%emt 0:00:03]} Kb7 {[%emt 0:00:16]} 37. Qxb5+ {[%emt 0:00:08]} Kc8 {[%emt 0:00:35]} 38. Bd2 {[%emt 0:04:14]} Be7 {[%emt 0:01:30]} 39. Ba5 {[%emt 0:00:13]} Rd7 {[%emt 0:00:27]} 40. Qc6+ {[%emt 0:00:00]} Kb8 {[%emt 0:00:00]} 41. b4 {[%emt 0:03:47]} Rb7 {[%emt 0:03:48]} 42. Kc1 {[%emt 0:10:30]} Ka7 {[%emt 0:05:59]} 43. b5 {[%emt 0:04:15]} Bd7 {[%emt 0:01:27]} 44. Qa6+ {[%emt 0:00:11]} Kb8 {[%emt 0:00:20]} 45. b6 {[%emt 0:00:02]} Be6 {[%emt 0:02:02]} 46. Qb5 {[%emt 0:01:25]} Rd7 {[%emt 0:00:44]} 47. Qc6 {[%emt 0:01:44]} Ba3+ {[%emt 0:03:02]} 48. Kd2 {[%emt 0:00:57]} Be7 {[%emt 0:00:16]} 49. Ke1 {[%emt 0:00:55]} Ba3 {[%emt 0:04:42]} 50. Kf2 {[%emt 0:00:29]} Be7 {[%emt 0:00:21]} 51. Bd2 {[%emt 0:00:13]} g5 {[%emt 0:10:02]} 52. Kg1 {[%emt 0:02:16]} Bf5 {[%emt 0:00:23]} 53. Bc1 {[%emt 0:01:39]} Be6 {[%emt 0:00:25]} 54. Bb2 {[%emt 0:00:14]} Bd8 {[%emt 0:03:53]} 55. Ba3 {[%emt 0:00:05]} Bxb6 {[%emt 0:00:35]} 56. Qxb6+ {[%emt 0:00:04]} 1-0

[Event "XIX Najdorf Memorial 2019"]
[Site "Warsaw"]
[Date "2019.07.10"]
[Round "5.24"]
[White "Piotrowski, Przemyslaw"]
[Black "Rakshitta Ravi"]
[Result "1-0"]
[ECO "A14"]
[WhiteElo "2273"]
[BlackElo "2112"]
[Annotator "NA"]
[PlyCount "83"]
[EventDate "2019.07.06"]
[EventType "swiss"]
[EventCountry "POL"]
[SourceTitle "playchess.com"]
[Source "ChessBase"]
[SourceQuality "1"]
[TimeControl "40/5400+30:1800+30"]

1. Nf3 {[%emt 0:00:43]} Nf6 {[%emt 0:00:00]} 2. c4 {[%emt 0:00:04]} e6 {[%emt 0:00:01]} 3. g3 {[%emt 0:00:06]} d5 {[%emt 0:00:06]} 4. Bg2 {[%emt 0:00:05]} Be7 {[%emt 0:00:06]} 5. O-O {[%emt 0:00:06]} O-O {[%emt 0:00:06]} 6. b3 {[%emt 0:00:03]} c5 {[%emt 0:00:07]} 7. cxd5 {[%emt 0:00:05]} Nxd5 {[%emt 0:00:24]} 8. Bb2 {[%emt 0:00:05]} Nc6 {[%emt 0:00:38]} 9. d4 {[%emt 0:00:06]} cxd4 {[%emt 0:05:15]} 10. Nxd4 {[%emt 0:00:04]} Nxd4 {[%emt 0:01:37]} 11. Qxd4 {[%emt 0:01:10]} Bf6 {[%emt 0:00:14]} 12. Qd2 {[%emt 0:00:05]} Bxb2 {[%emt 0:11:11]} 13. Qxb2 {[%emt 0:00:04]} Qe7 {[%emt 0:00:08]} 14. Nc3 {[%emt 0:06:30]} Nf6 {[%emt 0:25:17]} 15. Rfd1 {[%emt 0:10:38]} e5 {[%emt 0:01:19]} 16. Nb5 {[%emt 0:09:31]} a6 {[%emt 0:09:27]} 17. Nd6 {[%emt 0:12:26]} Rb8 {[%emt 0:05:57]} 18. Rac1 {[%emt 0:17:39]} Rd8 {[%emt 0:19:48]} 19. Nc4 {[%emt 0:03:03]} Rxd1+ {[%emt 0:00:09]} 20. Rxd1 {[%emt 0:00:02]} e4 {[%emt 0:00:12]} 21. Bxe4 {[%emt 0:07:46]} Bg4 {[%emt 0:10:16]} 22. Bd3 {[%emt 0:00:54]} Rd8 {[%emt 0:02:51]} 23. Qe5 {[%emt 0:01:29]} Qf8 {[%emt 0:01:28]} 24. Ne3 {[%emt 0:01:03]} Bh3 {[%emt 0:01:01]} 25. Qf4 {[%emt 0:02:01]} h6 {[%emt 0:00:49]} 26. g4 {[%emt 0:02:43]} h5 {[%emt 0:01:25]} 27. gxh5 {[%emt 0:02:35]} Qe7 {[%emt 0:02:08]} 28. Qh4 {[%emt 0:02:06]} Be6 {[%emt 0:01:15]} 29. h6 {[%emt 0:00:08]} g6 {[%emt 0:00:42]} 30. Qg5 {[%emt 0:03:08]} Rd4 {[%emt 0:00:28]} 31. h7+ {[%emt 0:02:15]} Kh8 {[%emt 0:00:33]} 32. Qe5 {[%emt 0:00:01]} Qd8 {[%emt 0:00:30]} 33. f3 {[%emt 0:01:27]} Rd7 {[%emt 0:00:30]} 34. h4 {[%emt 0:03:11]} Kxh7 {[%emt 0:00:17]} 35. h5 {[%emt 0:00:13]} Nd5 {[%emt 0:00:43]} 36. hxg6+ {[%emt 0:00:19]} fxg6 {[%emt 0:00:30]} 37. Qxe6 {[%emt 0:00:54]} Nf4 {[%emt 0:00:28]} 38. Bxg6+ {[%emt 0:00:18]} Kh6 {[%emt 0:00:28]} 39. Ng4+ {[%emt 0:00:29]} Kg5 {[%emt 0:00:07]} 40. Qxd7 {[%emt 0:00:00]} Qb6+ {[%emt 0:00:00]} 41. Kf1 {[%emt 0:01:11]} Nh3 {[%emt 0:00:26]} 42. Qd8+ {[%emt 0:00:43]} 1-0

[Event "XIX Najdorf Memorial 2019"]
[Site "Warsaw"]
[Date "2019.07.10"]
[Round "5.25"]
[White "Chomczyk, Marek"]
[Black "Golecki, Jan"]
[Result "1-0"]
[ECO "B40"]
[WhiteElo "2270"]
[BlackElo "1947"]
[Annotator "NA"]
[PlyCount "119"]
[EventDate "2019.07.06"]
[EventType "swiss"]
[EventCountry "POL"]
[SourceTitle "playchess.com"]
[Source "ChessBase"]
[SourceQuality "1"]
[TimeControl "40/5400+30:1800+30"]

1. e4 {[%emt 0:00:00]} c5 {[%emt 0:00:00]} 2. Nf3 {[%emt 0:00:00]} e6 {[%emt 0:00:00]} 3. d4 {[%emt 0:00:00]} cxd4 {[%emt 0:00:00]} 4. Nxd4 {[%emt 0:00:00]} Nf6 {[%emt 0:00:00]} 5. Bd3 {[%emt 0:01:13]} Nc6 {[%emt 0:01:54]} 6. Nxc6 {[%emt 0:04:52]} dxc6 {[%emt 0:07:57]} 7. O-O {[%emt 0:00:24]} e5 {[%emt 0:00:30]} 8. Nd2 {[%emt 0:00:53]} Bg4 {[%emt 0:12:55]} 9. f3 {[%emt 0:00:59]} Bc5+ {[%emt 0:00:15]} 10. Kh1 {[%emt 0:00:08]} Be6 {[%emt 0:01:43]} 11. Nc4 {[%emt 0:00:46]} Qc7 {[%emt 0:05:42]} 12. Be3 {[%emt 0:00:43]} Nd7 {[%emt 0:12:14]} 13. Qe1 {[%emt 0:00:37]} b5 {[%emt 0:05:11]} 14. Nd2 {[%emt 0:03:20]} Qb6 {[%emt 0:00:11]} 15. Bxc5 {[%emt 0:01:20]} Nxc5 {[%emt 0:03:45]} 16. Qg3 {[%emt 0:01:37]} O-O {[%emt 0:00:10]} 17. Qxe5 {[%emt 0:01:48]} Rad8 {[%emt 0:00:37]} 18. f4 {[%emt 0:00:47]} f6 {[%emt 0:00:10]} 19. Qh5 {[%emt 0:01:00]} Nxd3 {[%emt 0:01:09]} 20. cxd3 {[%emt 0:00:10]} Qe3 {[%emt 0:01:47]} 21. Nf3 {[%emt 0:04:23]} Qxd3 {[%emt 0:13:06]} 22. Rfe1 {[%emt 0:03:00]} Rfe8 {[%emt 0:02:03]} 23. Qc5 {[%emt 0:02:17]} Bg4 {[%emt 0:03:34]} 24. Re3 {[%emt 0:04:29]} Qd6 {[%emt 0:00:44]} 25. Qxd6 {[%emt 0:02:19]} Rxd6 {[%emt 0:00:06]} 26. Rae1 {[%emt 0:04:13]} Bxf3 {[%emt 0:00:36]} 27. gxf3 {[%emt 0:00:13]} Rd2 {[%emt 0:01:36]} 28. R1e2 {[%emt 0:01:23]} Red8 {[%emt 0:01:28]} 29. Kg2 {[%emt 0:00:08]} Kf7 {[%emt 0:02:43]} 30. Kf2 {[%emt 0:00:12]} b4 {[%emt 0:00:18]} 31. Rxd2 {[%emt 0:03:31]} Rxd2+ {[%emt 0:00:02]} 32. Re2 {[%emt 0:00:08]} Rd1 {[%emt 0:01:48]} 33. Rc2 {[%emt 0:00:11]} Ra1 {[%emt 0:00:17]} 34. b3 {[%emt 0:00:13]} Ke7 {[%emt 0:00:14]} 35. Ke3 {[%emt 0:00:10]} Kd6 {[%emt 0:00:19]} 36. f5 {[%emt 0:01:05]} g5 {[%emt 0:07:44]} 37. fxg6 {[%emt 0:02:57]} hxg6 {[%emt 0:00:02]} 38. h4 {[%emt 0:00:20]} Re1+ {[%emt 0:06:22]} 39. Re2 {[%emt 0:00:58]} Rg1 {[%emt 0:01:16]} 40. Rd2+ {[%emt 0:00:00]} Kc7 {[%emt 0:00:00]} 41. Rh2 {[%emt 0:02:05]} Ra1 {[%emt 0:14:51]} 42. f4 {[%emt 0:02:26]} a5 {[%emt 0:06:48]} 43. f5 {[%emt 0:01:15]} g5 {[%emt 0:02:31]} 44. h5 {[%emt 0:02:20]} Re1+ {[%emt 0:02:22]} 45. Kf3 {[%emt 0:00:56]} Rf1+ {[%emt 0:01:37]} 46. Kg3 {[%emt 0:00:10]} Rg1+ {[%emt 0:01:20]} 47. Kf2 {[%emt 0:06:12]} Rd1 {[%emt 0:02:32]} 48. h6 {[%emt 0:01:04]} Rd8 {[%emt 0:00:05]} 49. Kf3 {[%emt 0:00:17]} Rh8 {[%emt 0:02:19]} 50. Kg4 {[%emt 0:00:30]} Kd6 {[%emt 0:02:20]} 51. Kh5 {[%emt 0:00:07]} Ke5 {[%emt 0:03:36]} 52. Kg6 {[%emt 0:00:07]} g4 {[%emt 0:02:09]} 53. Kg7 {[%emt 0:00:12]} Rc8 {[%emt 0:00:39]} 54. h7 {[%emt 0:00:10]} Kxe4 {[%emt 0:02:05]} 55. h8=Q {[%emt 0:02:06]} Rxh8 {[%emt 0:00:05]} 56. Rxh8 {[%emt 0:00:06]} Kxf5 {[%emt 0:00:25]} 57. Rh5+ {[%emt 0:00:33]} Ke4 {[%emt 0:01:46]} 58. Kxf6 {[%emt 0:00:05]} g3 {[%emt 0:00:25]} 59. Rxa5 {[%emt 0:00:08]} g2 {[%emt 0:00:07]} 60. Rg5 {[%emt 0:00:05]} 1-0

[Event "XIX Najdorf Memorial 2019"]
[Site "Warsaw"]
[Date "2019.07.10"]
[Round "5.26"]
[White "Cieslak, Wiktoria"]
[Black "Siekanski, Janusz"]
[Result "0-1"]
[ECO "B81"]
[WhiteElo "2001"]
[BlackElo "2270"]
[Annotator "NA"]
[PlyCount "74"]
[EventDate "2019.07.06"]
[EventType "swiss"]
[EventCountry "POL"]
[SourceTitle "playchess.com"]
[Source "ChessBase"]
[SourceQuality "1"]
[TimeControl "40/5400+30:1800+30"]

1. e4 {[%emt 0:00:00]} c5 {[%emt 0:00:00]} 2. Nf3 {[%emt 0:00:00]} e6 {[%emt 0:00:00]} 3. d4 {[%emt 0:00:00]} cxd4 {[%emt 0:00:00]} 4. Nxd4 {[%emt 0:00:00]} Nf6 {[%emt 0:00:00]} 5. Nc3 {[%emt 0:00:01]} d6 {[%emt 0:00:00]} 6. g4 {[%emt 0:00:06]} Nc6 {[%emt 0:00:10]} 7. g5 {[%emt 0:00:15]} Nd7 {[%emt 0:00:06]} 8. Be3 {[%emt 0:01:00]} Be7 {[%emt 0:00:14]} 9. Rg1 {[%emt 0:00:10]} O-O {[%emt 0:01:00]} 10. Qh5 {[%emt 0:00:43]} g6 {[%emt 0:00:31]} 11. Qh6 {[%emt 0:01:45]} Nde5 {[%emt 0:00:42]} 12. O-O-O {[%emt 0:02:35]} f6 {[%emt 0:00:45]} 13. gxf6 {[%emt 0:02:25]} Bxf6 {[%emt 0:00:20]} 14. f4 {[%emt 0:04:41]} Nxd4 {[%emt 0:14:45]} 15. Bxd4 {[%emt 0:03:08]} Bg7 {[%emt 0:00:17]} 16. Qh3 {[%emt 0:05:39]} Rxf4 {[%emt 0:02:35]} 17. Bxe5 {[%emt 0:02:05]} Bxe5 {[%emt 0:00:33]} 18. Bc4 {[%emt 0:00:16]} Qf6 {[%emt 0:12:20]} 19. Rgf1 {[%emt 0:09:44]} Rxf1 {[%emt 0:17:34]} 20. Rxf1 {[%emt 0:00:14]} Qe7 {[%emt 0:00:18]} 21. Qg4 {[%emt 0:02:12]} Bd7 {[%emt 0:01:38]} 22. Ne2 {[%emt 0:03:11]} b5 {[%emt 0:08:51]} 23. Bb3 {[%emt 0:03:02]} Kh8 {[%emt 0:02:52]} 24. h4 {[%emt 0:01:03]} a5 {[%emt 0:02:34]} 25. a3 {[%emt 0:04:16]} a4 {[%emt 0:00:10]} 26. Ba2 {[%emt 0:00:06]} b4 {[%emt 0:00:29]} 27. axb4 {[%emt 0:00:53]} a3 {[%emt 0:00:13]} 28. c3 {[%emt 0:00:38]} axb2+ {[%emt 0:00:48]} 29. Kxb2 {[%emt 0:00:48]} d5 {[%emt 0:02:33]} 30. exd5 {[%emt 0:02:27]} exd5 {[%emt 0:01:13]} 31. Qg5 {[%emt 0:00:38]} Qxb4+ {[%emt 0:05:06]} 32. Bb3 {[%emt 0:00:16]} Qe4 {[%emt 0:02:05]} 33. Nf4 {[%emt 0:05:49]} Bf5 {[%emt 0:03:29]} 34. Qg2 {[%emt 0:03:06]} Bxc3+ {[%emt 0:04:08]} 35. Kxc3 {[%emt 0:00:27]} Qe3+ {[%emt 0:00:28]} 36. Kb2 {[%emt 0:01:04]} Qd4+ {[%emt 0:00:17]} 37. Kc1 {[%emt 0:00:48]} Ra1# {[%emt 0:00:17]} 0-1

[Event "XIX Najdorf Memorial 2019"]
[Site "Warsaw"]
[Date "2019.07.10"]
[Round "5.28"]
[White "Niedbala, Bartlomiej"]
[Black "Krstulovic, Alex"]
[Result "0-1"]
[ECO "D30"]
[WhiteElo "2152"]
[BlackElo "2360"]
[Annotator "NA RC"]
[PlyCount "102"]
[EventDate "2019.07.06"]
[EventType "swiss"]
[EventCountry "POL"]
[SourceTitle "playchess.com"]
[Source "ChessBase"]
[SourceQuality "1"]
[TimeControl "40/5400+30:1800+30"]

1. d4 d5 2. c4 e6 3. Nf3 Nf6 4. g3 dxc4 5. Qa4+ Nbd7 6. Qxc4 a6 7. a4 b5 8. Qc2 Bb7 9. Bg2 c5 10. O-O {[%emt 0:29:53]} Rc8 {[%emt 0:14:21]} 11. axb5 {[%emt 0:04:28]} axb5 {[%emt 0:00:11]} 12. Qb3 {[%emt 0:04:53]} Qb6 {[%emt 0:05:20]} 13. Na3 {[%emt 0:10:06]} Bc6 {[%emt 0:03:10]} 14. Rd1 {[%emt 0:12:27]} c4 {[%emt 0:02:20]} 15. Qe3 {[%emt 0:03:24]} Qb7 {[%emt 0:02:37]} 16. Ne1 {[%emt 0:05:39]} Bxg2 {[%emt 0:05:59]} 17. Nxg2 {[%emt 0:00:06]} b4 {[%emt 0:01:51]} 18. Nc2 {[%emt 0:04:00]} Be7 {[%emt 0:16:43]} 19. Bd2 {[%emt 0:05:17]} O-O {[%emt 0:01:23]} 20. Nf4 {[%emt 0:02:17]} b3 {[%emt 0:11:31]} 21. Ne1 {[%emt 0:01:40]} Ne4 {[%emt 0:02:00]} 22. Ba5 {[%emt 0:02:18]} Ndf6 {[%emt 0:03:45]} 23. f3 {[%emt 0:02:36]} Nd6 {[%emt 0:01:23]} 24. Kg2 {[%emt 0:01:50]} g5 {[%emt 0:02:58]} 25. Nh3 {[%emt 0:01:26]} Nd5 {[%emt 0:00:07]} 26. Qd2 {[%emt 0:00:21]} c3 {[%emt 0:00:40]} 27. Bxc3 {[%emt 0:03:06]} Nc4 {[%emt 0:00:08]} 28. Qd3 {[%emt 0:00:16]} Nce3+ {[%emt 0:00:32]} 29. Kf2 {[%emt 0:00:06]} Nxd1+ {[%emt 0:00:54]} 30. Rxd1 {[%emt 0:00:02]} Nxc3 {[%emt 0:03:06]} 31. bxc3 {[%emt 0:00:09]} Qc6 {[%emt 0:00:16]} 32. Rb1 {[%emt 0:00:15]} Qa4 {[%emt 0:00:53]} 33. c4 {[%emt 0:01:07]} Rxc4 {[%emt 0:00:50]} 34. Qxb3 {[%emt 0:00:03]} Qxb3 {[%emt 0:00:15]} 35. Rxb3 {[%emt 0:00:01]} Rxd4 {[%emt 0:00:10]} 36. Nd3 {[%emt 0:00:04]} Kg7 {[%emt 0:02:37]} 37. Rb7 {[%emt 0:01:09]} Bf6 {[%emt 0:00:10]} 38. Nc5 {[%emt 0:00:38]} Kg6 {[%emt 0:00:05]} 39. Ne4 {[%emt 0:00:53]} Rd5 {[%emt 0:01:08]} 40. Nxf6 {[%emt 0:00:00]} Kxf6 {[%emt 0:00:00]} 41. Ke3 {[%emt 0:02:47]} Re5+ {[%emt 0:03:59]} 42. Kf2 {[%emt 0:00:02]} h6 {[%emt 0:00:48]} 43. Rb2 {[%emt 0:00:52]} Kg6 {[%emt 0:00:54]} 44. Kg2 {[%emt 0:00:32]} Rc8 {[%emt 0:02:15]} 45. Nf2 {[%emt 0:00:53]} Rec5 {[%emt 0:00:44]} 46. Rb3 {[%emt 0:00:16]} Rc3 {[%emt 0:01:01]} 47. Rb4 {[%emt 0:00:07]} R8c4 {[%emt 0:00:13]} 48. Rb5 {[%emt 0:00:22]} Rc2 {[%emt 0:01:10]} 49. Kf1 {[%emt 0:00:33]} Rc1+ {[%emt 0:00:26]} 50. Kg2 {[%emt 0:00:01]} R4c2 {[%emt 0:00:20]} 51. Re5 {[%emt 0:00:13]} Re1 {[%emt 0:00:19]} 0-1

[Event "XIX Najdorf Memorial 2019"]
[Site "Warsaw"]
[Date "2019.07.10"]
[Round "5.29"]
[White "Marczuk, Dominik"]
[Black "Lukasiewicz, Anna"]
[Result "1-0"]
[ECO "E98"]
[WhiteElo "2300"]
[BlackElo "2062"]
[Annotator "NA"]
[PlyCount "69"]
[EventDate "2019.07.06"]
[EventType "swiss"]
[EventCountry "POL"]
[SourceTitle "playchess.com"]
[Source "ChessBase"]
[SourceQuality "1"]
[TimeControl "40/5400+30:1800+30"]

1. d4 {[%emt 0:00:00]} Nf6 {[%emt 0:02:55]} 2. c4 {[%emt 0:00:01]} g6 {[%emt 0:00:16]} 3. Nc3 {[%emt 0:00:12]} Bg7 {[%emt 0:00:20]} 4. e4 {[%emt 0:00:37]} d6 {[%emt 0:00:17]} 5. Nf3 {[%emt 0:00:16]} O-O {[%emt 0:00:36]} 6. Be2 {[%emt 0:00:39]} e5 {[%emt 0:01:11]} 7. O-O {[%emt 0:00:47]} Nc6 {[%emt 0:00:39]} 8. d5 {[%emt 0:00:16]} Ne7 {[%emt 0:00:15]} 9. Ne1 {[%emt 0:01:15]} Nd7 {[%emt 0:03:34]} 10. Bd2 {[%emt 0:01:27]} c6 {[%emt 0:04:17]} 11. Nd3 {[%emt 0:05:32]} f5 {[%emt 0:07:19]} 12. f3 {[%emt 0:02:11]} Nf6 {[%emt 0:06:42]} 13. b4 {[%emt 0:03:49]} b5 {[%emt 0:09:21]} 14. Nf2 {[%emt 0:22:47]} bxc4 {[%emt 0:13:19]} 15. dxc6 {[%emt 0:00:29]} Nxc6 {[%emt 0:01:34]} 16. Bxc4+ {[%emt 0:00:27]} Kh8 {[%emt 0:00:24]} 17. Bg5 {[%emt 0:13:59]} Nxb4 {[%emt 0:10:11]} 18. Qa4 {[%emt 0:01:36]} a5 {[%emt 0:01:34]} 19. a3 {[%emt 0:01:16]} Ba6 {[%emt 0:09:50]} 20. Bb5 {[%emt 0:04:28]} Bxb5 {[%emt 0:03:35]} 21. Nxb5 {[%emt 0:00:09]} Na6 {[%emt 0:02:27]} 22. Rfd1 {[%emt 0:00:57]} Nc5 {[%emt 0:00:58]} 23. Qc4 {[%emt 0:00:53]} Nb7 {[%emt 0:02:34]} 24. Qc6 {[%emt 0:05:51]} Qc8 {[%emt 0:02:39]} 25. Qxc8 {[%emt 0:01:11]} Raxc8 {[%emt 0:00:06]} 26. Nxd6 {[%emt 0:00:33]} Nxd6 {[%emt 0:00:09]} 27. Rxd6 {[%emt 0:00:05]} Ne8 {[%emt 0:00:41]} 28. Ra6 {[%emt 0:02:51]} Rf7 {[%emt 0:01:20]} 29. Rxa5 {[%emt 0:01:03]} Rfc7 {[%emt 0:03:18]} 30. Rd1 {[%emt 0:02:03]} h6 {[%emt 0:01:30]} 31. Bd8 {[%emt 0:10:22]} Rc3 {[%emt 0:01:55]} 32. a4 {[%emt 0:01:32]} Ra3 {[%emt 0:00:26]} 33. Ra6 {[%emt 0:02:17]} Kh7 {[%emt 0:00:31]} 34. Re6 {[%emt 0:05:25]} Nc7 {[%emt 0:03:04]} 35. Rc6 {[%emt 0:00:54]} 1-0

[Event "XIX Najdorf Memorial 2019"]
[Site "Warsaw"]
[Date "2019.07.10"]
[Round "5.30"]
[White "Bednarek, Sylwester"]
[Black "Suliborski, Jakub"]
[Result "1/2-1/2"]
[ECO "A42"]
[WhiteElo "2291"]
[BlackElo "2131"]
[Annotator "NA"]
[PlyCount "61"]
[EventDate "2019.07.06"]
[EventType "swiss"]
[EventCountry "POL"]
[SourceTitle "playchess.com"]
[Source "ChessBase"]
[SourceQuality "1"]
[TimeControl "40/5400+30:1800+30"]

1. d4 {[%emt 0:00:00]} g6 {[%emt 0:00:03]} 2. c4 {[%emt 0:00:00]} Bg7 {[%emt 0:00:07]} 3. Nc3 {[%emt 0:00:00]} d6 {[%emt 0:00:09]} 4. e4 {[%emt 0:00:01]} Nc6 {[%emt 0:01:11]} 5. Nge2 {[%emt 0:02:04]} Nf6 {[%emt 0:02:47]} 6. h3 {[%emt 0:03:53]} O-O {[%emt 0:04:25]} 7. g4 {[%emt 0:00:23]} e5 {[%emt 0:00:09]} 8. d5 {[%emt 0:00:03]} Nd4 {[%emt 0:00:06]} 9. Bg2 {[%emt 0:01:08]} c5 {[%emt 0:03:01]} 10. dxc6 {[%emt 0:00:48]} bxc6 {[%emt 0:00:05]} 11. g5 {[%emt 0:05:39]} Nh5 {[%emt 0:06:00]} 12. Nxd4 {[%emt 0:00:04]} exd4 {[%emt 0:00:05]} 13. Ne2 {[%emt 0:00:05]} d5 {[%emt 0:01:57]} 14. exd5 {[%emt 0:02:09]} cxd5 {[%emt 0:00:06]} 15. O-O {[%emt 0:00:11]} Qb6 {[%emt 0:05:57]} 16. Qb3 {[%emt 0:04:34]} Qc5 {[%emt 0:02:09]} 17. Qb5 {[%emt 0:04:26]} Qxb5 {[%emt 0:00:47]} 18. cxb5 {[%emt 0:00:03]} Rb8 {[%emt 0:00:20]} 19. a4 {[%emt 0:00:02]} a6 {[%emt 0:10:45]} 20. Rd1 {[%emt 0:04:27]} axb5 {[%emt 0:01:23]} 21. a5 {[%emt 0:00:07]} d3 {[%emt 0:04:49]} 22. Rxd3 {[%emt 0:01:59]} Re8 {[%emt 0:00:14]} 23. Be3 {[%emt 0:04:56]} Bxb2 {[%emt 0:06:25]} 24. Ra2 {[%emt 0:00:08]} d4 {[%emt 0:00:19]} 25. Nxd4 {[%emt 0:01:50]} Bxd4 {[%emt 0:00:15]} 26. Rxd4 {[%emt 0:00:02]} b4 {[%emt 0:01:02]} 27. Rb2 {[%emt 0:06:51]} b3 {[%emt 0:07:12]} 28. Rd6 {[%emt 0:00:41]} Ng7 {[%emt 0:04:38]} 29. a6 {[%emt 0:00:53]} Be6 {[%emt 0:01:52]} 30. a7 {[%emt 0:00:12]} Rbc8 {[%emt 0:00:07]} 31. Ra6 {[%emt 0:01:51]} 1/2-1/2

[Event "XIX Najdorf Memorial 2019"]
[Site "Warsaw"]
[Date "2019.07.10"]
[Round "5.31"]
[White "Antolak, Julia"]
[Black "Panek, Bartosz"]
[Result "1/2-1/2"]
[ECO "B40"]
[WhiteElo "2258"]
[BlackElo "2041"]
[Annotator "NA"]
[PlyCount "72"]
[EventDate "2019.07.06"]
[EventType "swiss"]
[EventCountry "POL"]
[SourceTitle "playchess.com"]
[Source "ChessBase"]
[SourceQuality "1"]
[TimeControl "40/5400+30:1800+30"]

1. e4 {[%emt 0:00:00]} c5 {[%emt 0:00:00]} 2. Nf3 {[%emt 0:00:00]} e6 {[%emt 0:00:00]} 3. d4 {[%emt 0:00:00]} cxd4 {[%emt 0:00:00]} 4. Nxd4 {[%emt 0:00:00]} Bc5 {[%emt 0:00:00]} 5. Nc3 {[%emt 0:02:54]} Nc6 {[%emt 0:00:06]} 6. Nb3 {[%emt 0:03:28]} Bb6 {[%emt 0:05:17]} 7. Bf4 {[%emt 0:07:23]} Nge7 {[%emt 0:00:12]} 8. Qd2 {[%emt 0:02:25]} d5 {[%emt 0:07:24]} 9. exd5 {[%emt 0:09:14]} Nxd5 {[%emt 0:01:00]} 10. O-O-O {[%emt 0:01:48]} Nxf4 {[%emt 0:01:42]} 11. Qxf4 {[%emt 0:00:08]} Qe7 {[%emt 0:02:09]} 12. Bd3 {[%emt 0:04:06]} O-O {[%emt 0:00:50]} 13. Rhe1 {[%emt 0:03:56]} Qf6 {[%emt 0:12:27]} 14. Qe4 {[%emt 0:04:40]} Qg6 {[%emt 0:00:57]} 15. Qe2 {[%emt 0:02:23]} Qh6+ {[%emt 0:07:53]} 16. Kb1 {[%emt 0:00:29]} a5 {[%emt 0:02:27]} 17. a4 {[%emt 0:05:58]} Rd8 {[%emt 0:10:00]} 18. g4 {[%emt 0:04:39]} Bd7 {[%emt 0:07:27]} 19. h4 {[%emt 0:05:17]} Qf4 {[%emt 0:00:47]} 20. f3 {[%emt 0:09:35]} Nb4 {[%emt 0:06:38]} 21. Be4 {[%emt 0:00:10]} Bc6 {[%emt 0:00:20]} 22. Bxc6 {[%emt 0:00:27]} Nxc6 {[%emt 0:01:45]} 23. Ne4 {[%emt 0:00:17]} Nd4 {[%emt 0:06:09]} 24. Nxd4 {[%emt 0:00:26]} Bxd4 {[%emt 0:00:12]} 25. Rd3 {[%emt 0:00:47]} Qe5 {[%emt 0:06:17]} 26. Qd2 {[%emt 0:03:12]} Bb6 {[%emt 0:05:43]} 27. Nd6 {[%emt 0:04:18]} Qg3 {[%emt 0:00:25]} 28. Rd1 {[%emt 0:00:48]} Qxh4 {[%emt 0:04:43]} 29. Nxb7 {[%emt 0:09:54]} Rxd3 {[%emt 0:00:24]} 30. Qxd3 {[%emt 0:00:01]} Qe7 {[%emt 0:00:31]} 31. Qd7 {[%emt 0:01:26]} Kf8 {[%emt 0:01:31]} 32. Qc6 {[%emt 0:02:22]} Qc7 {[%emt 0:00:19]} 33. Qxc7 {[%emt 0:01:25]} Bxc7 {[%emt 0:00:02]} 34. Rd7 {[%emt 0:01:26]} Rc8 {[%emt 0:00:22]} 35. Nd6 {[%emt 0:01:47]} Bxd6 {[%emt 0:00:13]} 36. Rxd6 {[%emt 0:00:02]} g6 {[%emt 0:00:28]} 1/2-1/2